fUSD/lending_fUSD_20240404
["ID","MTS","AMOUNT","RATE_DAILY","PERIOD"]
[321456534,1712200277149,-2780.85,0.00054794,120]
[321456535,1712200277162,-500.0,0.00054794,120]
[321456536,1712200277174,-2780.85,0.00054794,120]
[321456537,1712200277186,-500.0,0.00054794,120]
[321456538,1712200277198,-2780.85,0.00054794,120]
[321456539,1712200277210,-2098.39,0.00054794,120]
[321456540,1712200277223,-500.0,0.00054794,120]
[321456541,1712200277236,-2780.85,0.00054794,120]
[321456542,1712200277248,-1116.96,0.00054794,120]
[321456543,1712200277260,-2780.85,0.00054794,120]
[321456544,1712200277272,-538.7533268,0.00054794,120]
[321456545,1712200277284,-2780.85,0.00054794,120]
[321456546,1712200277296,-2780.85,0.00054794,120]
[321456547,1712200277308,-512.99248624,0.00054794,120]
[321456548,1712200277321,-2780.85,0.00054794,120]
[321456549,1712200277333,-3864.9,0.00054794,120]
[321456550,1712200277344,-2780.85,0.00054794,120]
[321456551,1712200277356,-2780.85,0.00054794,120]
[321456552,1712200277368,-500.0,0.00054794,120]
[321456553,1712200277379,-2780.85,0.00054794,120]
[321456554,1712200277392,-2780.85,0.00054794,120]
[321456555,1712200277403,-954.49,0.00054794,120]
[321456556,1712200277415,-2780.85,0.00054794,120]
[321456557,1712200277426,-2780.85,0.00054794,120]
[321456558,1712200277437,-500.0,0.00054794,120]
[321456559,1712200277448,-534.21,0.00054794,120]
[321456560,1712200277460,-1845.84,0.00054794,120]
[321456561,1712200277471,-2780.85,0.00054794,120]
[321456562,1712200277483,-2780.85,0.00054794,120]
[321456563,1712200277494,-500.0,0.00054794,120]
[321456564,1712200277513,-2780.85,0.00054794,120]
[321456565,1712200277524,-2780.85,0.00054794,120]
[321456566,1712200277535,-2780.85,0.00054794,120]
[321456567,1712200277547,-2780.97,0.00054794,120]
[321456568,1712200277558,-1293.92,0.00054794,120]
[321456569,1712200277570,-500.0,0.00054794,120]
[321456570,1712200277581,-504.11432149,0.00054794,120]
[321456571,1712200277593,-2905.09,0.00054794,120]
[321456572,1712200277605,-500.0,0.00054794,120]
[321456573,1712200277617,-509.48074751,0.00054794,120]
[321456574,1712200277630,-500.0,0.00054794,120]
[321456575,1712200277643,-647.32,0.00054794,120]
[321456576,1712200277656,-500.0,0.00054794,120]
[321456577,1712200277667,-508.12006886,0.00054794,120]
[321456578,1712200277679,-500.0,0.00054794,120]
[321456579,1712200277690,-230.324354,0.00054794,120]
[321456580,1712200277702,-500.0,0.00054794,120]
[321456581,1712200277714,-2444.5,0.00054794,120]
[321456582,1712200277727,-500.0,0.00054794,120]
[321456583,1712200277739,-515.46748613,0.00054794,120]
[321456584,1712200277751,-500.0,0.00054794,120]
[321456585,1712200277764,-500.0,0.00054794,120]
[321456586,1712200277777,-5301.8,0.00054794,120]
[321456587,1712200277790,-500.0,0.00054794,120]
[321456588,1712200277802,-230.324354,0.00054794,120]
[321456589,1712200277814,-500.0,0.00054794,120]
[321456590,1712200277826,-520.4950552,0.00054794,120]
[321456591,1712200277838,-500.0,0.00054794,120]
[321456592,1712200277850,-500.0,0.00054794,120]
[321456593,1712200277865,-508.81730403,0.00054794,120]
[321456594,1712200277878,-517.44055632,0.00054794,120]
[321456595,1712200277889,-500.0,0.00054794,120]
[321456596,1712200277902,-2706.47,0.00054794,120]
[321456597,1712200277914,-534.88,0.00054794,120]
[321456598,1712200277926,-500.0,0.00054794,120]
[321456599,1712200277938,-500.0,0.00054794,120]
[321456600,1712200277949,-500.0,0.00054794,120]
[321456601,1712200277962,-596.6,0.00054794,120]
[321456602,1712200277974,-500.0,0.00054794,120]
[321456603,1712200277985,-500.0,0.00054794,120]
[321456604,1712200277997,-500.0,0.00054794,120]
[321456605,1712200278008,-3864.29,0.00054794,120]
[321456606,1712200278020,-1563.7,0.00054794,120]
[321456607,1712200278032,-2328.79,0.00054794,120]
[321456608,1712200278043,-500.0,0.00054794,120]
[321456609,1712200278055,-500.0,0.00054794,120]
[321456610,1712200278067,-500.0,0.00054794,120]
[321456611,1712200278078,-5451.86,0.00054794,120]
[321456612,1712200278091,-500.0,0.00054794,120]
[321456613,1712200278103,-638.42,0.00054794,120]
[321456614,1712200278115,-2730.07,0.00054794,120]
[321456615,1712200278127,-500.0,0.00054794,120]
[321456616,1712200278139,-500.0,0.00054794,120]
[321456617,1712200278151,-837.9630396,0.00054794,3]
[321456618,1712200278163,-534.29,0.00054794,120]
[321456619,1712200278175,-694.4,0.00054794,120]
[321456620,1712200278187,-151.0,0.00054794,120]
[321456621,1712200278199,-509.19725786,0.00054794,120]
[321456622,1712200278212,-500.0,0.00054794,30]
[321456623,1712200278224,-858.40166,0.00054794,30]
[321456624,1712200278235,-523.74,0.00054794,120]
[321456625,1712200278248,-500.0,0.00054794,120]
[321456626,1712200278259,-4099.83,0.00054794,120]
[321456627,1712200278272,-500.0,0.00054794,120]
[321456628,1712200278284,-500.0,0.00054794,120]
[321456629,1712200278297,-846.32,0.00054794,120]
[321456630,1712200278310,-985.74,0.00054794,120]
[321456631,1712200278325,-3423.85,0.00054794,120]
[321456632,1712200278337,-500.0,0.00054794,120]
[321456633,1712200278350,-500.0,0.00054794,120]
[321456634,1712200278365,-858.40166,0.00054794,30]
[321456635,1712200278376,-4903.62,0.00054794,120]
[321456636,1712200278388,-2225.21,0.00054794,120]
[321456637,1712200278399,-516.15254146,0.00054794,120]
[321456638,1712200278411,-511.66775216,0.00054794,120]
[321456639,1712200278423,-500.0,0.00054794,120]
[321456640,1712200278434,-500.0,0.00054794,120]
[321456641,1712200278446,-153.463366,0.00054794,120]
[321456642,1712200278457,-500.0,0.00054794,120]
[321456643,1712200278469,-500.0,0.00054794,120]
[321456644,1712200278480,-769.61,0.00054794,120]
[321456645,1712200278491,-510.90657903,0.00054794,120]
[321456646,1712200278502,-500.0,0.00054794,120]
[321456647,1712200278514,-500.0,0.00054794,120]
[321456648,1712200278526,-3165.76,0.00054794,120]
[321456649,1712200278537,-500.0,0.00054794,120]
[321456650,1712200278548,-1040.28,0.00054794,120]
[321456651,1712200278560,-504.87244581,0.00054794,120]
[321456652,1712200278576,-500.0,0.00054794,120]
[321456653,1712200278587,-9130.88,0.00054794,120]
[321456654,1712200278599,-5027.15,0.00054794,120]
[321456655,1712200278611,-500.0,0.00054794,120]
[321456656,1712200278623,-500.0,0.00054794,120]
[321456657,1712200278634,-500.0,0.00054794,120]
[321456658,1712200278645,-500.0,0.00054794,120]
[321456659,1712200278658,-546.03,0.00054794,120]
[321456660,1712200278669,-2873.37,0.00054794,120]
[321456661,1712200278680,-500.0,0.00054794,120]
[321456662,1712200278692,-526.34747989,0.00054794,120]
[321456663,1712200278703,-500.0,0.00054794,120]
[321456664,1712200278715,-500.0,0.00054794,120]
[321456665,1712200278726,-513.01141554,0.00054794,120]
[321456666,1712200278737,-705.68,0.00054794,120]
[321456667,1712200278749,-500.0,0.00054794,120]
[321456668,1712200278760,-782.7,0.00054794,120]
[321456669,1712200278772,-1850.68,0.00054794,120]
[321456670,1712200278784,-500.0,0.00054794,120]
[321456671,1712200278796,-355.90958646,0.00054794,120]
[321456672,1712200278807,-500.0,0.00054794,120]
[321456673,1712200278819,-1606.71,0.00054794,120]
[321456674,1712200278831,-500.0,0.00054794,120]
[321456675,1712200278845,-3000.0,0.00054794,120]
[321456676,1712200278859,-500.0,0.00054794,120]
[321456677,1712200278871,-594.92,0.00054794,120]
[321456678,1712200278883,-4035.15,0.00054794,120]
[321456679,1712200278896,-500.0,0.00054794,120]
[321456680,1712200278907,-2413.37,0.00054794,120]
[321456681,1712200278920,-500.0,0.00054794,120]
[321456682,1712200278933,-1349.71,0.00054794,120]
[321456683,1712200278946,-500.0,0.00054794,120]
[321456684,1712200278958,-551.94,0.00054794,120]
[321456685,1712200278970,-1282.09,0.00054794,120]
[321456686,1712200278982,-945.36,0.00054794,120]
[321456687,1712200278994,-836.33,0.00054794,120]
[321456688,1712200279006,-151.0,0.00054794,120]
[321456689,1712200279018,-524.82554287,0.00054794,120]
[321456690,1712200279030,-500.0,0.00054794,120]
[321456691,1712200279042,-500.0,0.00054794,120]
[321456692,1712200279054,-500.0,0.00054794,120]
[321456693,1712200279069,-500.0,0.00054794,120]
[321456694,1712200279471,-1406.21,0.00054794,120]
[321456695,1712200279502,-151.0,0.00054794,120]
[321456696,1712200279516,-946.04,0.00054794,120]
[321456697,1712200279525,-500.0,0.00054794,120]
[321456698,1712200279533,-500.0,0.00054794,120]
[321456699,1712200279542,-641.98,0.00054794,120]
[321456700,1712200279551,-512.76547193,0.00054794,120]
[321456701,1712200279560,-431.38146781,0.00054794,120]
[321456702,1712200279570,-898.28,0.00054794,120]
[321456703,1712200279579,-2000.0,0.00054794,120]
[321456704,1712200279589,-500.0,0.00054794,120]
[321456705,1712200279598,-2000.0,0.00054794,120]
[321456706,1712200279608,-500.0,0.00054794,120]
[321456707,1712200279617,-2000.0,0.00054794,120]
[321456708,1712200279626,-151.0,0.00054794,120]
[321456709,1712200279635,-2000.0,0.00054794,120]
[321456710,1712200279645,-8609.89,0.00054794,120]
[321456711,1712200279654,-627.13,0.00054794,120]
[321456712,1712200279663,-2000.0,0.00054794,120]
[321456713,1712200279672,-375.67534206,0.00054794,120]
[321456714,1712200279682,-2000.0,0.00054794,120]
[321456715,1712200279691,-1151.94,0.00054794,120]
[321456716,1712200279700,-5468.41,0.00054794,120]
[321456717,1712200279709,-2000.0,0.00054794,120]
[321456718,1712200279718,-2000.0,0.00054794,120]
[321456719,1712200279728,-2000.0,0.00054794,120]
[321456720,1712200279737,-1889.11,0.00054794,120]
[321456721,1712200279747,-2000.0,0.00054794,120]
[321456722,1712200279756,-500.0,0.00054794,120]
[321456723,1712200279766,-2000.0,0.00054794,120]
[321456724,1712200279775,-2000.0,0.00054794,120]
[321456725,1712200279784,-151.0,0.00054794,120]
[321456726,1712200279793,-2000.0,0.00054794,120]
[321456727,1712200279802,-2000.0,0.00054794,120]
[321456728,1712200279811,-151.0,0.00054794,120]
[321456729,1712200279822,-2000.0,0.00054794,120]
[321456730,1712200279831,-2000.0,0.00054794,120]
[321456731,1712200279840,-499.5486866,0.00054794,120]
[321456732,1712200279849,-2000.0,0.00054794,120]
[321456733,1712200279861,-53073.95,0.00054794,120]
[321456734,1712200279870,-500.0,0.00054794,120]
[321456735,1712200279880,-525.95,0.00054794,120]
[321456736,1712200279889,-367.9304813,0.00054794,120]
[321456737,1712200279898,-2000.0,0.00054794,120]
[321456738,1712200279908,-6399.43,0.00054794,120]
[321456739,1712200279917,-2000.0,0.00054794,120]
[321456740,1712200279926,-2000.0,0.00054794,120]
[321456741,1712200279937,-2000.0,0.00054794,120]
[321456742,1712200279945,-2000.0,0.00054794,120]
[321456743,1712200279954,-2000.0,0.00054794,120]
[321456744,1712200279963,-500.0,0.00054794,120]
[321456745,1712200279973,-500.0,0.00054794,120]
[321456746,1712200279982,-1040.72431183,0.00054794,120]
[321456747,1712200279992,-645.37,0.00054794,120]
[321456748,1712200280002,-507.32595285,0.00054794,120]
[321456749,1712200280011,-171.185208,0.00054794,120]
[321456750,1712200280020,-151.0,0.00054794,7]
[321456751,1712200280029,-1683.47,0.00054794,120]
[321456752,1712200280038,-500.0,0.00054794,120]
[321456753,1712200280048,-500.0,0.00054794,120]
[321456754,1712200280057,-6691.4,0.00054794,120]
[321456755,1712200280066,-611.07,0.00054794,120]
[321456756,1712200280076,-500.0,0.00054794,120]
[321456757,1712200280086,-1927.66,0.00054794,120]
[321456758,1712200280095,-5148.74,0.00054794,120]
[321456759,1712200280106,-500.0,0.00054794,120]
[321456760,1712200280116,-852.93,0.00054794,120]
[321456761,1712200280125,-1030.18,0.00054794,120]
[321456762,1712200280134,-604.27,0.00054794,120]
[321456763,1712200280143,-8800.38,0.00054794,120]
[321456764,1712200280152,-571.44,0.00054794,120]
[321456765,1712200280162,-500.0,0.00054794,120]
[321456766,1712200280171,-1657.49,0.00054794,120]
[321456767,1712200280180,-2507.81,0.00054794,120]
[321456768,1712200280189,-614.29,0.00054794,120]
[321456769,1712200280198,-500.0,0.00054794,120]
[321456770,1712200280207,-825.58,0.00054794,120]
[321456771,1712200280216,-989.45,0.00054794,120]
[321456772,1712200280225,-500.0,0.00054794,120]
[321456773,1712200280234,-2396.3,0.00054794,120]
[321456774,1712200280244,-1134.76,0.00054794,120]
[321456775,1712200280253,-500.0,0.00054794,120]
[321456776,1712200280262,-500.0,0.00054794,120]
[321456777,1712200280272,-513.3815582,0.00054794,120]
[321456778,1712200280282,-5513.42,0.00054794,120]
[321456779,1712200280291,-1852.1,0.00054794,7]
[321456780,1712200280301,-500.0,0.00054794,120]
[321456781,1712200280310,-2968.67,0.00054794,120]
[321456782,1712200280322,-2345.81,0.00054794,120]
[321456783,1712200280332,-200.701774,0.00054794,120]
[321456784,1712200280341,-3000.0,0.00054794,120]
[321456785,1712200280350,-500.0,0.00054794,120]
[321456786,1712200280359,-1250.54,0.00054794,120]
[321456787,1712200280369,-500.0,0.00054794,120]
[321456788,1712200280379,-2079.2,0.00054794,120]
[321456789,1712200280388,-500.0,0.00054794,120]
[321456790,1712200280398,-200.701774,0.00054794,120]
[321456791,1712200280407,-509.48422456,0.00054794,120]
[321456792,1712200280417,-500.0,0.00054794,120]
[321456793,1712200280426,-500.0,0.00054794,120]
[321456794,1712200280435,-3247.17,0.00054794,120]
[321456795,1712200280444,-500.0,0.00054794,120]
[321456796,1712200280454,-500.0,0.00054794,120]
[321456797,1712200280463,-519.73308504,0.00054794,120]
[321456798,1712200280472,-871.75,0.00054794,120]
[321456799,1712200280481,-527.14622204,0.00054794,120]
[321456800,1712200280491,-902.7,0.00054794,120]
[321456801,1712200280500,-500.0,0.00054794,120]
[321456802,1712200280509,-15898.05,0.00054794,120]
[321456803,1712200280518,-3358.82,0.00054794,120]
[321456804,1712200280527,-151.0,0.00054794,120]
[321456805,1712200280537,-217.97847,0.00054794,30]
[321456806,1712200280546,-690.28,0.00054794,120]
[321456807,1712200280555,-3349.18,0.00054794,120]
[321456808,1712200280565,-1202.73,0.00054794,120]
[321456809,1712200280575,-399.7958865,0.00054794,120]
[321456810,1712200280584,-217.97847,0.00054794,30]
[321456811,1712200280593,-517.47162405,0.00054794,120]
[321456812,1712200280602,-500.0,0.00054794,120]
[321456813,1712200280611,-500.0,0.00054794,120]
[321456814,1712200280621,-3733.56,0.00054794,120]
[321456815,1712200280631,-529.61259239,0.00054794,120]
[321456816,1712200280640,-3909.57,0.00054794,120]
[321456817,1712200280649,-2507.95,0.00054794,120]
[321456818,1712200280658,-500.0,0.00054794,120]
[321456819,1712200280668,-2808.48,0.00054794,120]
[321456820,1712200280677,-500.0,0.00054794,120]
[321456821,1712200280686,-500.0,0.00054794,120]
[321456822,1712200280696,-556.58,0.00054794,120]
[321456823,1712200280705,-500.0,0.00054794,120]
[321456824,1712200280714,-151.0,0.00054794,120]
[321456825,1712200280724,-500.0,0.00054794,120]
[321456826,1712200280734,-755.27,0.00054794,120]
[321456827,1712200280744,-500.0,0.00054794,120]
[321456828,1712200280754,-2313.89,0.00054794,120]
[321456829,1712200280763,-507.89007569,0.00054794,120]
[321456830,1712200280773,-2398.13,0.00054794,120]
[321456831,1712200280783,-500.0,0.00054794,120]
[321456832,1712200280793,-500.0,0.00054794,120]
[321456833,1712200280803,-14500.53,0.00054794,120]
[321456834,1712200280813,-151.0,0.00054794,120]
[321456835,1712200280824,-500.0,0.00054794,120]
[321456836,1712200280834,-528.08373079,0.00054794,120]
[321456837,1712200280845,-1675.35,0.00054794,120]
[321456838,1712200280857,-500.0,0.00054794,120]
[321456839,1712200280869,-500.0,0.00054794,120]
[321456840,1712200280879,-2367.07,0.00054794,120]
[321456841,1712200280891,-151.0,0.00054794,120]
[321456842,1712200280904,-2722.45,0.00054794,120]
[321456843,1712200280914,-503.04288499,0.00054794,120]
[321456844,1712200280925,-520.00481103,0.00054794,120]
[321456845,1712200280935,-1253.38,0.00054794,120]
[321456846,1712200280944,-500.0,0.00054794,120]
[321456847,1712200280954,-534.62697897,0.00054794,120]
[321456848,1712200280964,-500.0,0.00054794,120]
[321456849,1712200280974,-500.0,0.00054794,120]
[321456850,1712200280984,-552.28,0.00054794,120]
[321456851,1712200280995,-1188.53,0.00054794,120]
[321456852,1712200281004,-1586.48,0.00054794,120]
[321456853,1712200281014,-500.0,0.00054794,120]
[321456854,1712200281024,-2639.18,0.00054794,120]
[321456855,1712200281034,-500.0,0.00054794,120]
[321456856,1712200281044,-506.90501612,0.00054794,120]
[321456857,1712200281055,-500.0,0.00054794,120]
[321456858,1712200281065,-500.0,0.00054794,120]
[321456859,1712200281079,-508.31172372,0.00054794,120]
[321456860,1712200281089,-500.0,0.00054794,120]
[321456861,1712200281099,-500.0,0.00054794,120]
[321456862,1712200281109,-1457.76,0.00054794,120]
[321456863,1712200281119,-1660.69,0.00054794,120]
[321456864,1712200281130,-2986.02,0.00054794,120]
[321456865,1712200281139,-507.84467544,0.00054794,120]
[321456866,1712200281150,-500.0,0.00054794,120]
[321456867,1712200281160,-500.0,0.00054794,120]
[321456868,1712200281171,-1877.49,0.00054794,120]
[321456869,1712200281181,-771.63,0.00054794,120]
[321456870,1712200281192,-2410.62,0.00054794,120]
[321456871,1712200281203,-903.02,0.00054794,120]
[321456872,1712200281214,-1159.24,0.00054794,120]
[321456873,1712200281224,-3214.36,0.00054794,120]
[321456874,1712200281234,-500.0,0.00054794,120]
[321456875,1712200281244,-500.0,0.00054794,120]
[321456876,1712200281254,-924.61,0.00054794,120]
[321456877,1712200281264,-507.9457944,0.00054794,120]
[321456878,1712200281274,-500.0,0.00054794,120]
[321456879,1712200281283,-500.0,0.00054794,120]
[321456880,1712200281292,-292.667321,0.00054794,120]
[321456881,1712200281302,-1000.0,0.00054794,14]
[321456882,1712200281312,-500.0,0.00054794,120]
[321456883,1712200281326,-500.0,0.00054794,120]
[321456884,1712200281337,-513.26715673,0.00054794,120]
[321456885,1712200281347,-292.667321,0.00054794,120]
[321456886,1712200281357,-500.0,0.00054794,120]
[321456887,1712200281367,-40448.75,0.00054794,120]
[321456888,1712200281379,-516.3403734,0.00054794,120]
[321456889,1712200281388,-509.68100431,0.00054794,120]
[321456890,1712200281398,-1955.63,0.00054794,120]
[321456891,1712200281408,-508.70775008,0.00054794,120]
[321456892,1712200281417,-2432.48,0.00054794,120]
[321456893,1712200281427,-500.0,0.00054794,120]
[321456894,1712200281436,-500.0,0.00054794,120]
[321456895,1712200281446,-500.0,0.00054794,120]
[321456896,1712200281456,-500.0,0.00054794,120]
[321456897,1712200281465,-504.62698184,0.00054794,120]
[321456898,1712200281475,-1208.03,0.00054794,120]
[321456899,1712200281484,-3666.55,0.00054794,120]
[321456900,1712200281493,-500.0,0.00054794,120]
[321456901,1712200281503,-565.01,0.00054794,120]
[321456902,1712200281512,-2721.89,0.00054794,120]
[321456903,1712200281522,-500.0,0.00054794,120]
[321456904,1712200281531,-1251.21,0.00054794,120]
[321456905,1712200281541,-593.12,0.00054794,120]
[321456906,1712200281551,-510.04495126,0.00054794,120]
[321456907,1712200281561,-6048.98,0.00054794,120]
[321456908,1712200281576,-1635.1,0.00054794,120]
[321456909,1712200281585,-503.79454178,0.00054794,120]
[321456910,1712200281594,-500.0,0.00054794,120]
[321456911,1712200281603,-501.10770543,0.00054794,120]
[321456912,1712200281612,-8828.9,0.00054794,120]
[321456913,1712200281622,-500.0,0.00054794,120]
[321456914,1712200281631,-500.0,0.00054794,120]
[321456915,1712200281641,-500.0,0.00054794,120]
[321456916,1712200281650,-522.87304373,0.00054794,120]
[321456917,1712200281660,-500.0,0.00054794,120]
[321456918,1712200281670,-1504.24,0.00054794,120]
[321456919,1712200281679,-500.0,0.00054794,120]
[321456920,1712200281689,-500.0,0.00054794,120]
[321456921,1712200281699,-835.11,0.00054794,120]
[321456922,1712200281710,-507.25553199,0.00054794,120]
[321456923,1712200281721,-5900.97,0.00054794,120]
[321456924,1712200281731,-18220.01,0.00054794,120]
[321456925,1712200281742,-500.0,0.00054794,120]
[321456926,1712200281752,-500.0,0.00054794,120]
[321456927,1712200281762,-500.0,0.00054794,120]
[321456928,1712200281773,-881.61,0.00054794,120]
[321456929,1712200281783,-500.0,0.00054794,120]
[321456930,1712200281792,-502.7737253,0.00054794,120]
[321456931,1712200281803,-511.30434888,0.00054794,120]
[321456932,1712200281813,-1186.29,0.00054794,120]
[321456933,1712200281829,-528.6,0.00054794,120]
[321456934,1712200281840,-22689.12,0.00054794,120]
[321456935,1712200281851,-500.0,0.00054794,120]
[321456936,1712200281863,-500.0,0.00054794,120]
[321456937,1712200281873,-500.0,0.00054794,120]
[321456938,1712200281884,-3620.99,0.00054794,120]
[321456939,1712200281894,-500.0,0.00054794,120]
[321456940,1712200281905,-500.0,0.00054794,120]
[321456941,1712200281915,-515.30184957,0.00054794,120]
[321456942,1712200281925,-2635.7,0.00054794,120]
[321456943,1712200281935,-500.0,0.00054794,120]
[321456944,1712200281947,-441.83957724,0.00054794,120]
[321456945,1712200281957,-500.0,0.00054794,120]
[321456946,1712200281967,-500.0,0.00054794,120]
[321456947,1712200281977,-500.0,0.00054794,120]
[321456948,1712200281987,-500.0,0.00054794,120]
[321456949,1712200281996,-650.57,0.00054794,120]
[321456950,1712200282006,-1339.71,0.00054794,120]
[321456951,1712200282016,-500.0,0.00054794,120]
[321456952,1712200282025,-500.0,0.00054794,2]
[321456953,1712200282035,-500.0,0.00054794,2]
[321456954,1712200282045,-500.0,0.00054794,2]
[321456955,1712200282056,-500.0,0.00054794,2]
[321456956,1712200282065,-151.0,0.00054794,120]
[321456957,1712200282080,-500.0,0.00054794,2]
[321456958,1712200282089,-500.0,0.00054794,120]
[321456959,1712200282098,-500.0,0.00054794,2]
[321456960,1712200282107,-500.0,0.00054794,2]
[321456961,1712200282116,-500.0,0.00054794,120]
[321456962,1712200282125,-500.0,0.00054794,2]
[321456963,1712200282134,-500.0,0.00054794,2]
[321456964,1712200282143,-4460.99,0.00054794,120]
[321456965,1712200282153,-500.0,0.00054794,2]
[321456966,1712200282162,-534.96999093,0.00054794,120]
[321456967,1712200282172,-507.26687169,0.00054794,2]
[321456968,1712200282182,-500.0,0.00054794,120]
[321456969,1712200282192,-1711.13,0.00054794,7]
[321456970,1712200282202,-2237.15,0.00054794,21]
[321456971,1712200282211,-1691.17,0.00054794,120]
[321456972,1712200282221,-500.0,0.00054794,120]
[321456973,1712200282231,-500.0,0.00054794,120]
[321456974,1712200282241,-658.56,0.00054794,120]
[321456975,1712200282251,-508.31427507,0.00054794,120]
[321456976,1712200282261,-500.0,0.00054794,120]
[321456977,1712200282271,-7361.59,0.00054794,120]
[321456978,1712200282281,-506.07598041,0.00054794,120]
[321456979,1712200282291,-500.0,0.00054794,120]
[321456980,1712200282300,-1097.27,0.00054794,120]
[321456981,1712200282310,-4641.79,0.00054794,120]
[321456982,1712200282322,-500.0,0.00054794,120]
[321456983,1712200282331,-500.0,0.00054794,120]
[321456984,1712200282341,-500.0,0.00054794,120]
[321456985,1712200282350,-259.428547,0.00054794,120]
[321456986,1712200282359,-500.0,0.00054794,120]
[321456987,1712200282369,-430.65531202,0.00054794,120]
[321456988,1712200282378,-5803.21,0.00054794,120]
[321456989,1712200282387,-4333.28,0.00054794,120]
[321456990,1712200282397,-5008.64,0.00054794,120]
[321456991,1712200282406,-515.63273388,0.00054794,120]
[321456992,1712200282415,-1131.15,0.00054794,120]
[321456993,1712200282425,-812.33,0.00054794,120]
[321456994,1712200282434,-259.428547,0.00054794,120]
[321456995,1712200282444,-500.0,0.00054794,120]
[321456996,1712200282454,-15539.97,0.00054794,120]
[321456997,1712200282464,-2073.37,0.00054794,120]
[321456998,1712200282474,-162.974525,0.00054794,120]
[321456999,1712200282484,-500.0,0.00054794,120]
[321457000,1712200282495,-514.0628798,0.00054794,120]
[321457001,1712200282701,-1653.07,0.00054794,120]
[321457002,1712200282727,-162.974525,0.00054794,120]
[321457003,1712200282737,-151.0,0.00054794,120]
[321457004,1712200282746,-500.0,0.00054794,120]
[321457005,1712200282756,-786.18,0.00054794,120]
[321457006,1712200282765,-500.0,0.00054794,120]
[321457007,1712200282775,-500.0,0.00054794,120]
[321457008,1712200282785,-500.0,0.00054794,120]
[321457009,1712200282794,-500.0,0.00054794,120]
[321457010,1712200282804,-500.0,0.00054794,120]
[321457011,1712200282813,-1000.0,0.00054794,120]
[321457012,1712200282827,-3101.5,0.00054794,120]
[321457013,1712200282837,-500.0,0.00054794,120]
[321457014,1712200282847,-500.73087838,0.00054794,120]
[321457015,1712200282856,-4002.83,0.00054794,120]
[321457016,1712200282866,-500.0,0.00054794,120]
[321457017,1712200282876,-500.0,0.00054794,120]
[321457018,1712200282886,-1099.33,0.00054794,120]
[321457019,1712200282895,-500.0,0.00054794,120]
[321457020,1712200282904,-1000.0,0.00054794,120]
[321457021,1712200282914,-780.89,0.00054794,120]
[321457022,1712200282923,-151.0,0.00054794,120]
[321457023,1712200282932,-1810.31,0.00054794,120]
[321457024,1712200282942,-510.01324328,0.00054794,120]
[321457025,1712200282951,-500.0,0.00054794,120]
[321457026,1712200282961,-2719.84,0.00054794,120]
[321457027,1712200282971,-992.63,0.00054794,120]
[321457028,1712200282980,-500.0,0.00054794,120]
[321457029,1712200282990,-8315.86,0.00054794,30]
[321457030,1712200283000,-504.19960986,0.00054794,120]
[321457031,1712200283009,-4594.4,0.00054794,120]
[321457032,1712200283018,-516.54005701,0.00054794,120]
[321457033,1712200283028,-461.879019,0.00054794,120]